lending/lending_fUSD_20250318
["ID","MTS","AMOUNT","RATE_DAILY","PERIOD"]
[356348016,1742319032406,-154.69,9.614e-05,2]
[356348017,1742319032415,-154.69,9.638e-05,2]
[356348018,1742319032424,-154.69,9.663e-05,2]
[356348019,1742319032434,-154.69,9.687e-05,2]
[356348020,1742319032444,-176.54,9.695e-05,2]
[356348021,1742319032453,-235.647,9.702e-05,2]
[356348022,1742319032462,-1060.714,9.702e-05,2]
[356348023,1742319032472,-154.69,9.712e-05,2]
[356348024,1742319032481,-154.69,9.736e-05,2]
[356348025,1742319032491,-154.69,9.761e-05,2]
[356348027,1742319032501,-4492.36901202,9.77e-05,2]
[356348029,1742319032510,-17310.10889929,9.789e-05,2]
[356348031,1742319032521,-2510.60206527,9.789e-05,2]
[356348033,1742319032533,-8907.99634074,9.789e-05,2]
[356348035,1742319032542,-313.8384,9.79e-05,2]
[356348036,1742319032551,-4744.2072,9.8e-05,2]
[356348038,1742319032561,-18166.3504,9.8e-05,2]
[356348040,1742319032570,-1568.1875,9.8e-05,2]
[356348042,1742319032580,-1120.1031,9.8e-05,2]
[356348044,1742319032589,-1000.0,9.825e-05,2]
[356348046,1742319032599,-500.0,9.899e-05,2]
[356348048,1742319032608,-500.0,9.899e-05,2]
[356348050,1742319032618,-500.0,9.899e-05,2]
[356348052,1742319032627,-500.0,9.899e-05,2]
[356348054,1742319032636,-500.0,9.899e-05,2]
[356348056,1742319032645,-500.0,9.899e-05,2]
[356348058,1742319032655,-500.0,9.899e-05,2]
[356348060,1742319032664,-194.02549722,9.899e-05,2]
[356348062,1742319032674,-500.0,9.899e-05,2]
[356348064,1742319032683,-500.0,9.899e-05,2]
[356348067,1742319032692,-500.0,9.899e-05,2]
[356348070,1742319032702,-797.0,9.9e-05,2]
[356348072,1742319032711,-2929.5365,9.9e-05,2]
[356348074,1742319032721,-149130.57666204,9.9e-05,2]
[356348077,1742319032739,-6005.30786303,9.9e-05,2]
[356348418,1742319040077,-307.69072556,9.789e-05,2]
[356348420,1742319040088,-18666.35045041,9.789e-05,2]
[356348442,1742319040293,-6922.84887029,9.789e-05,2]
[356348444,1742319040303,-284301.59542101,9.9e-05,2]
[356348446,1742319040317,-1708637.08590302,9.9e-05,2]
[356348561,1742319041372,-8191.88370001,9.9e-05,2]
[356348609,1742319044015,-716.0,9.9e-05,2]
[356348610,1742319044024,-1743.18709576,9.9e-05,2]
[356348611,1742319044036,-2767.83726989,9.9e-05,2]
[356348612,1742319044047,-294829.07573028,9.9e-05,2]
[356348614,1742319046159,-145969.80256446,9.9e-05,2]
[356348615,1742319046171,-3277.94093333,9.9e-05,2]
[356348616,1742319046183,-2325.655661,9.9e-05,2]
[356348617,1742319046339,-1446.27983838,9.9e-05,2]
[356348618,1742319046351,-93905.47113392,9.9e-05,2]
[356348619,1742319046363,-123118.27273435,9.9e-05,2]
[356348620,1742319046376,-53326.9499955,9.9e-05,2]
[356348621,1742319046387,-2578.72061342,9.9e-05,2]
[356348622,1742319046401,-559.18729511,9.9e-05,2]
[356348623,1742319046414,-912.59977092,9.9e-05,2]
[356348624,1742319046430,-70114.03565432,9.9e-05,2]
[356348625,1742319046504,-376.87925389,9.9e-05,2]
[356348662,1742319323797,-250.0,9e-05,2]
[356348663,1742319323824,-817.82731774,9.5e-05,2]
[356348664,1742319323852,-497.06536713,9.769e-05,2]
[356348665,1742319323879,-583.4337,9.8e-05,2]
[356348666,1742319323906,-7311.7276,9.8e-05,2]
[356348667,1742319323929,-250.0,9.85e-05,2]
[356348668,1742319323953,-643.0,9.9e-05,2]
[356348669,1742319323982,-12948.44502313,9.9e-05,2]
[356348670,1742319324000,-250.0,9.9e-05,2]
[356348671,1742319324012,-817.82731774,9.9e-05,2]
[356348672,1742319324023,-497.06536713,9.9e-05,2]
[356348673,1742319324035,-583.4337,9.9e-05,2]
[356348674,1742319324046,-7311.7276,9.9e-05,2]
[356348675,1742319324057,-250.0,9.9e-05,2]
[356348676,1742319324068,-643.0,9.9e-05,2]
[356348677,1742319324079,-12948.44502313,9.9e-05,2]
[356348678,1742319324091,-1510689.840384,9.9e-05,2]
[356348680,1742319391896,-300.0,9.899e-05,2]
[356348681,1742319391918,-150.0,9.899e-05,2]
[356348682,1742319391942,-578.0,9.9e-05,2]
[356348683,1742319391967,-6474.22251157,9.9e-05,2]
[356348684,1742319391991,-150.0,9.9e-05,2]
[356348685,1742319392013,-250.0,9.9e-05,2]
[356348686,1742319392038,-6909252.77748843,9.9e-05,2]
[356348688,1742319671163,1294.62,8.219e-05,2]
[356348720,1742320232311,-300.0,9.309e-05,2]
[356348721,1742320232321,-1813.28286315,9.31e-05,2]
[356348722,1742320232366,-774.34181465,9.31e-05,2]
[356348723,1742320232424,-7121.66478147,9.31e-05,2]
[356348724,1742320232477,-10851.96597556,9.31e-05,2]
[356348725,1742320232532,-3338.74456517,9.31e-05,2]
[356348726,1742320232542,-150.0,9.428e-05,2]
[356348727,1742320232552,-250.0,9.428e-05,2]
[356348728,1742320232562,-1000.0,9.547e-05,2]
[356348729,1742320232571,-121.90758634,9.549e-05,2]
[356348737,1742320238230,-217.77360995,9.428e-05,2]
[356348738,1742320238241,-50.17241366,9.549e-05,2]
[356348739,1742320238250,-1136.59,9.557e-05,2]
[356348740,1742320238260,-805.88,9.588e-05,2]
[356348741,1742320238270,-13751.1957,9.7e-05,2]
[356348742,1742320238279,-218.57690078,9.7e-05,2]
[356348743,1742320238291,-299.77149922,9.7e-05,2]
[356348744,1742320238300,-194.59845578,9.7e-05,2]
[356348745,1742320238312,-112.68154422,9.7e-05,2]
[356348746,1742320238321,-789.97845578,9.702e-05,2]
[356348747,1742320238333,-58.59354422,9.702e-05,2]
[356348748,1742320238343,-500.0,9.799e-05,2]
[356348749,1742320238352,-500.0,9.799e-05,2]
[356348750,1742320238362,-500.0,9.799e-05,2]
[356348751,1742320238372,-500.0,9.799e-05,2]
[356348752,1742320238383,-500.0,9.799e-05,2]
[356348753,1742320238392,-500.0,9.799e-05,2]
[356348754,1742320238402,-635.81784805,9.799e-05,2]
[356348755,1742320238412,-51612.26376766,9.8e-05,2]
[356348756,1742320238423,-7311.7276447,9.8e-05,2]
[356348757,1742320238434,-1141.60691107,9.8e-05,2]
[356348758,1742320238445,-632.10865498,9.8e-05,2]
[356348760,1742320240298,-1412.40222067,9.8e-05,2]
[356348761,1742320240353,-21415.29841066,9.8e-05,2]
[356348835,1742320243277,-910.23914214,9.8e-05,2]
[356348877,1742320244395,-35734.14747349,9.8e-05,2]
[356348878,1742320244407,-509.50571749,9.8e-05,2]
[356348885,1742320246270,-0.19059873,9.8e-05,2]
[356348886,1742320246282,-17475.68498501,9.8e-05,2]
[356348887,1742320246479,-1607.8220734,9.8e-05,2]
[356348888,1742320246489,-39898.3856,9.8e-05,2]
[356348889,1742320246498,-1302.8558,9.8e-05,2]
[356348890,1742320246508,-571.29790003,9.8e-05,2]
[356348891,1742320246518,-527.0,9.9e-05,2]
[356348892,1742320246528,-77839.81438353,9.9e-05,2]
[356348902,1742320260094,500.0,9.5e-05,3]
[356348903,1742320261209,1100.0,9.6e-05,3]
[356348904,1742320263313,1700.0,9.7e-05,3]
[356348905,1742320265406,2200.0,9.8e-05,3]
[356348906,1742320267502,2800.0,9.9e-05,3]
[356348907,1742320269591,500.0,0.0001,3]
[356348909,1742320360110,-325.2305,9.7e-05,2]
[356348910,1742320360132,-345.9278,9.7e-05,2]
[356348911,1742320365957,-14758.0794,9.8e-05,2]
[356348912,1742320378763,-300.0,9.899e-05,2]
[356348913,1742320378786,-500.0,9.899e-05,2]
[356348914,1742320378809,-500.0,9.899e-05,2]
[356348915,1742320378832,-500.0,9.899e-05,2]
[356348916,1742320378855,-545.07249364,9.899e-05,2]
[356348917,1742320378877,-500.0,9.899e-05,2]
[356348918,1742320393968,-300.0,9.898e-05,2]
[356348919,1742320411627,-5897.271,9.7e-05,2]
[356348920,1742320416185,-595.431,9.8e-05,2]
[356348922,1742320529884,150.0,9.66e-05,7]
[356348924,1742320835413,1262.27,8.219e-05,2]
[356348927,1742321138892,200.0,8.841e-05,2]
[356348928,1742321138976,4940.49,8.841e-05,2]
[356348929,1742321139009,18959.51,8.841e-05,2]
[356348930,1742321183434,169.41,8.827e-05,2]
[356348934,1742321317397,-4031.48,8.968e-05,2]
[356348935,1742321317423,-250.0,9e-05,2]
[356348936,1742321317449,-150.0,9.048e-05,2]
[356348937,1742321317475,-250.0,9.048e-05,2]
[356348938,1742321317500,-451.94322592,9.097e-05,2]
[356348939,1742321330238,195.83,7.138e-05,2]
[356348950,1742321432391,-445.16677408,9.097e-05,2]
[356348951,1742321432401,-150.0,9.136e-05,2]
[356348952,1742321432696,-250.0,9.136e-05,2]
[356348953,1742321432706,-2000.0,9.176e-05,2]
[356348954,1742321432716,-168.16,9.196e-05,2]
[356348955,1742321432727,-597.36,9.253e-05,2]
[356348956,1742321432737,-1268.96,9.349e-05,2]
[356348957,1742321432747,-1000.0,9.382e-05,2]
[356348958,1742321432756,-154.41,9.43e-05,2]
[356348959,1742321432766,-1852.42,9.556e-05,2]
[356348960,1742321432777,-4682.63,9.57e-05,2]
[356348961,1742321432787,-250.0,9.573e-05,2]
[356348962,1742321432797,-3739.35096366,9.7e-05,2]
[356348963,1742321432807,-678.857,9.702e-05,2]
[356348965,1742321432817,-740.78895131,9.744e-05,2]
[356348966,1742321432827,-187.59275015,9.789e-05,2]
[356348968,1742321432837,-1000.0,9.8e-05,2]
[356348970,1742321432846,-4557.3411,9.8e-05,2]
[356348972,1742321432855,-10690.7462,9.8e-05,2]
[356348974,1742321432864,-554.168,9.812e-05,2]
[356348976,1742321432873,-787.0,9.812e-05,2]
[356348978,1742321432883,-1271.0,9.812e-05,2]
[356348980,1742321432892,-907.0,9.812e-05,2]
[356348982,1742321432901,-4081.0,9.812e-05,2]
[356348983,1742321432910,-1429.0,9.812e-05,2]
[356348984,1742321432920,-1000.0,9.813e-05,2]
[356348985,1742321432929,-150.0,9.865e-05,2]
[356348986,1742321432939,-250.0,9.865e-05,2]
[356348987,1742321432948,-3936.0,9.9e-05,2]
[356348988,1742321432957,-225.698,9.9e-05,2]
[356348989,1742321432968,-1013.0,9.9e-05,2]
[356348990,1742321432977,-162154.07047248,9.9e-05,2]
[356348998,1742321433131,-21764.40664707,9.9e-05,2]
[356349000,1742321433144,-135768.57363094,9.9e-05,2]
[356349002,1742321433156,-1498.37856869,9.9e-05,2]
[356349005,1742321433173,-339.86178435,9.9e-05,2]
[356349091,1742321855569,1247.41,8.219e-05,2]
[356349104,1742322563319,167.49,8.895e-05,2]
[356349108,1742322603960,-300.0,8.942e-05,2]
[356349110,1742322603992,-7338.58154469,8.943e-05,2]
[356349112,1742322604025,-7638.58154469,8.943e-05,2]
[356349113,1742322604065,-7638.58154469,8.943e-05,2]
[356349115,1742322604101,-1284.25536593,8.943e-05,2]
[356349116,1742322604127,-702.68,8.958e-05,2]
[356349117,1742322604154,-906.91097035,9.002e-05,2]
[356349131,1742322631576,-250.0,8.947e-05,2]
[356349132,1742322631586,-93.08902965,9.002e-05,2]
[356349133,1742322631595,-250.0,9.031e-05,2]
[356349134,1742322631605,-1035.66,9.045e-05,2]
[356349135,1742322631615,-2631.89,9.148e-05,2]
[356349136,1742322631624,-165.01,9.214e-05,2]
[356349137,1742322631634,-8846.19286304,9.71e-05,2]
[356349138,1742322631644,-1751.73921225,9.789e-05,2]
[356349139,1742322631654,-1382.768,9.8e-05,2]
[356349140,1742322631663,-1519.218,9.8e-05,2]
[356349141,1742322631673,-1000.0,9.8e-05,2]
[356349142,1742322631682,-3910.6561,9.8e-05,2]
[356349143,1742322631691,-1687.6701255,9.81e-05,2]
[356349144,1742322631701,-420.0,9.836e-05,2]
[356349145,1742322631711,-150.0,9.837e-05,2]
[356349146,1742322631720,-250.0,9.837e-05,2]
[356349147,1742322631731,-150.0,9.837e-05,2]
[356349148,1742322631741,-250.0,9.837e-05,2]
[356349149,1742322631751,-565.07743824,9.838e-05,2]
[356349150,1742322631761,-155.030318,9.873e-05,2]
[356349151,1742322631771,-176.3,9.874e-05,2]
[356349152,1742322631782,-2034.0,9.88e-05,2]
[356349153,1742322631791,-167.35259782,9.899e-05,2]
[356349154,1742322631802,-543.086,9.899e-05,2]
[356349155,1742322631812,-89006.13273089,9.9e-05,2]
[356349156,1742322631824,-2959.99147724,9.9e-05,2]
[356349157,1742322631836,-1644.03817482,9.9e-05,2]
[356349158,1742322631859,-22374.26429546,9.9e-05,2]
[356349159,1742322631871,-840.0,9.9e-05,2]
[356349160,1742322631883,-4407.26800177,9.9e-05,2]
[356349161,1742322631894,-419.22518436,9.9e-05,2]
[356349162,1742322631905,-320.29041264,9.9e-05,2]
[356349192,1742322639687,-641.0,9.88e-05,2]
[356349193,1742322639697,-3237.11125578,9.9e-05,2]
[356349194,1742322639707,-668832.10226169,9.9e-05,2]
[356349195,1742322639716,-1924224.28223636,9.9e-05,2]
[356349196,1742322639726,-819.999999,9.9e-05,2]
[356349197,1742322639737,-176.3,9.9e-05,2]
[356349198,1742322639747,-2560.1025194,9.905e-05,2]
[356349199,1742322639756,-6550.2513216,9.905e-05,2]
[356349200,1742322639766,-1262.530324,9.905e-05,2]
[356349201,1742322639775,-2234.4496179,9.912e-05,2]
[356349202,1742322639784,-2742.3099723,9.912e-05,2]
[356349203,1742322639794,-2843.7224136,9.919e-05,2]
[356349204,1742322639804,-176.3,9.926e-05,2]
[356349205,1742322639813,-176.3,9.952e-05,2]
[356349206,1742322639823,-1835.0,9.973e-05,2]
[356349207,1742322639832,-176.3,9.978e-05,2]
[356349208,1742322639841,-1271.0,9.98e-05,2]
[356349209,1742322639851,-787.0,9.98e-05,2]
[356349210,1742322639860,-541.0,9.98e-05,2]
[356349211,1742322639869,-1429.0,9.98e-05,2]
[356349212,1742322639878,-1358.815,9.98e-05,2]
[356349213,1742322639888,-907.0,9.98e-05,2]
[356349214,1742322639897,-1114.0,9.98e-05,2]
[356349215,1742322639907,-302.0,9.98e-05,2]
[356349216,1742322639916,-1326.902,9.98e-05,2]
[356349217,1742322639926,-3936.0,9.98e-05,2]
[356349218,1742322639935,-1000.0,9.98e-05,2]
[356349219,1742322639944,-31080.73902208,9.98e-05,2]
[356349220,1742322639954,-1000.0,9.98e-05,2]
[356349221,1742322639963,-1000.0,9.98e-05,2]
[356349222,1742322639972,-1000.0,9.98e-05,2]
[356349223,1742322639984,-1000.0,9.98e-05,2]
[356349224,1742322639993,-1000.0,9.98e-05,2]
[356349225,1742322640003,-1000.0,9.98e-05,2]
[356349226,1742322640012,-1000.0,9.98e-05,2]
[356349227,1742322640022,-1000.0,9.98e-05,2]
[356349229,1742322640031,-1000.0,9.98e-05,2]
[356349230,1742322640041,-1000.0,9.98e-05,2]
[356349231,1742322640050,-272.692,9.99e-05,2]
[356349232,1742322640061,-151.0,9.99e-05,2]
[356349233,1742322640070,-160.964,9.99e-05,2]
[356349235,1742322640079,-166.756,9.99e-05,2]
[356349237,1742322640089,-170.898,9.99e-05,2]
[356349239,1742322640098,-155.495,9.99e-05,2]
[356349240,1742322640108,-2801.6581067,9.993e-05,2]
[356349241,1742322640117,-2759.5937998,9.993e-05,2]
[356349242,1742322640127,-2717.5294929,9.993e-05,2]
[356349243,1742322640136,-2675.465186,9.993e-05,2]
[356349244,1742322640146,-2633.4008791,9.993e-05,2]
[356349245,1742322640156,-2201.3976667,9.993e-05,2]
[356349246,1742322640166,-2168.3457155,9.993e-05,2]
[356349247,1742322640176,-2135.2937643,9.993e-05,2]
[356349248,1742322640185,-2102.241813,9.993e-05,2]
[356349249,1742322640195,-2069.1898618,9.993e-05,2]
[356349250,1742322640204,-2691.4702757,9.993e-05,2]
[356349251,1742322640213,-2640.6305791,9.993e-05,2]
[356349252,1742322640222,-2589.7908825,9.993e-05,2]
[356349253,1742322640231,-2538.9511859,9.993e-05,2]
[356349254,1742322640242,-2488.1114893,9.993e-05,2]
[356349255,1742322640251,-2511.7103376,9.993e-05,2]
[356349256,1742322640260,-2463.3181558,9.993e-05,2]
[356349257,1742322640269,-2414.9259741,9.993e-05,2]
[356349258,1742322640277,-2366.5337923,9.993e-05,2]
[356349259,1742322640286,-2318.1416105,9.993e-05,2]
[356349260,1742322640295,-6426.4355954,9.993e-05,2]
[356349261,1742322640304,-6302.6198692,9.993e-05,2]
[356349262,1742322640313,-6178.804143,9.993e-05,2]
[356349263,1742322640322,-6054.9884168,9.993e-05,2]
[356349264,1742322640331,-5931.1726906,9.993e-05,2]
[356349265,1742322640340,-1233.9447318,9.993e-05,2]
[356349266,1742322640349,-1205.3591396,9.993e-05,2]
[356349267,1742322640358,-1176.7735473,9.993e-05,2]
[356349268,1742322640368,-1148.1879551,9.993e-05,2]
[356349269,1742322640377,-1119.6023628,9.993e-05,2]
[356349271,1742322640386,-205036.40991342,9.999e-05,2]
[356349273,1742322640396,-756662.91165452,0.0001,2]
[356349274,1742322640405,-924147.15303858,0.0001,2]
[356349275,1742322640415,-5299.98334156,0.0001,2]
[356349276,1742322640424,-500.0,0.0001,2]
[356349277,1742322640436,-4724039.1510718,0.0001,2]
[356349278,1742322640446,-5105.38966546,0.0001,2]
[356349279,1742322640456,-3789251.55262555,0.0001,2]
[356349280,1742322640475,-16305.39593269,0.0001,2]
[356349281,1742322640488,-1438.0047324,0.0001,2]
[356349282,1742322640499,-1193.5808724,0.0001,2]
[356349285,1742322640516,-395.395,0.0001,2]
[356349287,1742322640528,-9960.460866,0.0001,2]
[356349289,1742322640540,-639.1,0.0001,2]
[356349292,1742322640561,-1381.73076182,0.0001,2]
[356349295,1742322640578,-300.75060262,0.0001,2]
[356349346,1742322642588,-1092.25483927,0.0001,2]
[356349348,1742322642599,-9544.60131001,0.0001,2]
[356349349,1742322642611,-4430.0000001,0.0001,2]
[356349350,1742322642695,-1794.14245454,0.0001,2]
[356349351,1742322642749,-2018.6710283,0.0001,2]
[356349352,1742322642806,-500.0,0.0001,2]
[356349370,1742322643711,-27868.39352695,0.0001,2]
[356349375,1742322645770,-1013.0,9.88e-05,2]
[356349376,1742322645780,-655.0,0.0001,2]
[356349377,1742322645792,-1260.2911538,0.0001,2]
[356349378,1742322645814,-8193.2538,0.0001,2]
[356349379,1742322645826,-672.3,0.0001,2]
[356349380,1742322645866,-932561.34846831,0.0001,2]
[356349381,1742322645881,-804782.47917822,0.0001,2]
[356349382,1742322645895,-109861.27674451,0.0001,2]
[356349383,1742322645907,-500.0,0.0001,2]
[356349384,1742322645919,-91024.37493075,0.0001,2]
[356349397,1742322877913,1185.03,8.219e-05,2]
[356349400,1742323129609,250.0,8.848e-05,2]
[356349401,1742323129632,750.0,8.848e-05,2]
[356349402,1742323150853,351.34,8.847e-05,2]
[356349403,1742323222991,7713.63,8.847e-05,2]
[356349404,1742323223016,10000.0,8.847e-05,2]
[356349405,1742323223038,6186.37,8.847e-05,2]
[356349406,1742323328529,151.0,0.0001,3]
[356349407,1742323356032,1500.0,8.847e-05,2]
[356349408,1742323473398,477.88,8.847e-05,2]
[356349409,1742323628487,151.0,0.0001,3]
[356349418,1742323831743,-250.0,8.918e-05,2]
[356349419,1742323831755,-250.0,8.929e-05,2]
[356349420,1742323831764,-150.0,8.929e-05,2]
[356349421,1742323831774,-250.0,9e-05,2]
[356349422,1742323831783,-250.0,9.09e-05,2]
[356349423,1742323831792,-150.0,9.09e-05,2]
[356349424,1742323831802,-151.8,9.468e-05,2]
[356349425,1742323831812,-151.8,9.493e-05,2]
[356349426,1742323831822,-151.8,9.518e-05,2]
[356349427,1742323831834,-151.8,9.543e-05,2]
[356349428,1742323831844,-151.8,9.568e-05,2]
[356349429,1742323831854,-151.8,9.593e-05,2]
[356349430,1742323831863,-151.8,9.618e-05,2]
[356349431,1742323831873,-151.8,9.642e-05,2]
[356349432,1742323831883,-151.8,9.667e-05,2]
[356349433,1742323831892,-151.8,9.692e-05,2]
[356349434,1742323831905,-150.0,9.71e-05,2]
[356349435,1742323831914,-150.0,9.717e-05,2]
[356349436,1742323831923,-151.8,9.717e-05,2]
[356349437,1742323831933,-151.8,9.742e-05,2]
[356349438,1742323831943,-151.8,9.767e-05,2]
[356349439,1742323831953,-151.8,9.792e-05,2]
[356349440,1742323831963,-250.0,9.81e-05,2]
[356349441,1742323831973,-150.0,9.81e-05,2]
[356349442,1742323831982,-151.8,9.817e-05,2]
[356349443,1742323831992,-151.8,9.842e-05,2]
[356349444,1742323832001,-151.8,9.867e-05,2]
[356349445,1742323832011,-151.8,9.892e-05,2]
[356349446,1742323832020,-151.8,9.916e-05,2]
[356349447,1742323832030,-38.03199825,9.941e-05,2]
[356349448,1742323832042,-396.43700175,9.941e-05,2]
[356349449,1742323832052,-151.8,9.941e-05,2]
[356349450,1742323832062,-85.68009934,9.953e-05,2]
[356349451,1742323832073,-293.39163012,9.953e-05,2]
[356349452,1742323832085,-98.80827054,9.953e-05,2]
[356349453,1742323832094,-506.24904934,9.954e-05,2]
[356349454,1742323832109,-493.75095066,9.954e-05,2]
[356349455,1742323832119,-1280.0,9.98e-05,2]
[356349457,1742323832128,-2034.0,9.98e-05,2]
[356349458,1742323832138,-294.67,9.98e-05,2]
[356349460,1742323832148,-571.0,9.98e-05,2]
[356349461,1742323832157,-786.0,9.98e-05,2]
[356349462,1742323832167,-4079.0,9.98e-05,2]
[356349463,1742323832178,-1429.0,9.98e-05,2]
[356349465,1742323832188,-541.0,9.98e-05,2]
[356349466,1742323832198,-3936.0,9.98e-05,2]
[356349467,1742323832208,-1013.0,9.98e-05,2]
[356349468,1742323832218,-151.0,9.98e-05,2]
[356349469,1742323832228,-500.0,9.999e-05,2]
[356349471,1742323832238,-281.55074555,9.999e-05,2]
[356349472,1742323832248,-500.0,9.999e-05,2]
[356349474,1742323832258,-1331650.58773732,0.0001,2]
[356349477,1742323832273,-723.53013871,0.0001,2]
[356349479,1742323832284,-1075.9549519,0.0001,2]
[356349481,1742323832295,-1133.55417094,0.0001,2]
[356349486,1742323832564,-892.94977,0.0001,2]
[356349487,1742323832578,-555.14206772,0.0001,2]
[356349492,1742323837675,-3021.2224804,0.0001,2]
[356349493,1742323837687,-11269.99501991,0.0001,2]
[356349494,1742323837726,-193327.40367536,0.0001,2]
[356349495,1742323837781,-482.44589076,0.0001,2]
[356349496,1742323837793,-2806.89382165,0.0001,2]
[356349497,1742323837805,-2124.41,0.0001,2]
[356349498,1742323837843,-299.18971487,0.0001,2]
[356349499,1742323837855,-1004.57485244,0.0001,2]
[356349500,1742323837866,-2287.90125688,0.0001,2]
[356349501,1742323837879,-437.74276958,0.0001,2]
[356349502,1742323837890,-492.04005655,0.0001,2]
[356349503,1742323837903,-10899.05273941,0.0001,2]
[356349504,1742323837914,-740.79258,0.0001,2]
[356349505,1742323837926,-1921.45432012,0.0001,2]
[356349506,1742323837938,-1754.54527749,0.0001,2]
[356349507,1742323837950,-8795.0,0.0001,2]
[356349508,1742323837968,-17256.3355125,0.0001,2]
[356349511,1742323839877,-519.99999999,0.0001,2]
[356349512,1742323839896,-117219.72196779,0.0001,2]
[356349513,1742323839910,-2041.41284595,0.0001,2]
[356349514,1742323839964,-10360.75152027,0.0001,2]
[356349515,1742323839977,-430.70681443,0.0001,2]
[356349516,1742323840030,-4875.745,0.0001,2]
[356349517,1742323840041,-616.92,0.0001,2]
[356349518,1742323840053,-394.3849896,0.0001,2]
[356349519,1742323840071,-1920.0,0.0001,2]
[356349520,1742323840111,-919.40116331,0.0001,2]
[356349521,1742323840123,-1128.04249358,0.0001,2]
[356349536,1742323842792,-143074.29811969,0.0001,2]
[356349537,1742323842803,-210278.24209818,0.0001,2]
[356349538,1742323842845,-5498.14470342,0.0001,2]
[356349539,1742323842857,-1304.54706711,0.0001,2]
[356349641,1742323843719,-596.13,0.0001,2]
[356349643,1742323843732,-258.4,0.0001,2]
[356349645,1742323843751,-826.79727951,0.0001,2]
[356349648,1742323843773,-6076.0,0.0001,2]
[356349650,1742323843786,-16711.99245288,0.0001,2]
[356349652,1742323843799,-6373.00058143,0.0001,2]
[356349654,1742323843811,-9582.00820931,0.0001,2]
[356349657,1742323843824,-33416.039998,0.0001,2]
[356349660,1742323843844,-1610.63948066,0.0001,2]
[356349662,1742323843855,-817.1986,0.0001,2]
[356349696,1742323846013,-313.45516705,9.98e-05,2]
[356349697,1742323846067,-800.54483295,9.98e-05,2]
[356349698,1742323846077,-644.34817087,0.0001,2]
[356349918,1742324007616,1125.77,8.219e-05,2]
[356349919,1742324107334,176.9,8.882e-05,2]
[356349920,1742324109169,176.9,8.882e-05,2]
[356349921,1742324143283,250.0,8.873e-05,2]
[356349925,1742324220882,106.18,8.856e-05,2]
[356349926,1742324220904,893.82,8.856e-05,2]
[356349927,1742324257122,175.67,8.857e-05,2]
[356349930,1742324585498,8930.51,8.855e-05,2]
[356349931,1742324585522,10000.0,8.855e-05,2]
[356349932,1742324585546,4969.49,8.855e-05,2]
[356349934,1742324804548,-250.0,9e-05,2]
[356349935,1742324804574,-250.0,9.03e-05,2]
[356349936,1742324804598,-150.0,9.061e-05,2]
[356349937,1742324804620,-172.08,9.121e-05,2]
[356349938,1742324804642,-250.0,9.162e-05,2]
[356349939,1742324804665,-150.0,9.303e-05,2]
[356349940,1742324804689,-176.9,9.327e-05,2]
[356349941,1742324804710,-250.0,9.546e-05,2]
[356349942,1742324804733,-150.0,9.716e-05,2]
[356349943,1742324804756,-150.0,9.717e-05,2]
[356349944,1742324804780,-150.0,9.72e-05,2]
[356349945,1742324804803,-150.0,9.726e-05,2]
[356349946,1742324804825,-150.0,9.73e-05,2]
[356349947,1742324804848,-150.0,9.73e-05,2]
[356349948,1742324804871,-150.0,9.736e-05,2]
[356349949,1742324804894,-150.0,9.737e-05,2]
[356349950,1742324804916,-150.0,9.74e-05,2]
[356349951,1742324804939,-150.0,9.74e-05,2]
[356349952,1742324804963,-150.0,9.746e-05,2]
[356349953,1742324804987,-150.0,9.746e-05,2]
[356349954,1742324805011,-150.0,9.747e-05,2]
[356349955,1742324805035,-150.0,9.75e-05,2]
[356349956,1742324805057,-150.0,9.752e-05,2]
[356349957,1742324805080,-150.0,9.753e-05,2]
[356349958,1742324805103,-150.0,9.755e-05,2]
[356349959,1742324805131,-150.0,9.759e-05,2]
[356349960,1742324805154,-150.0,9.759e-05,2]
[356349961,1742324805179,-150.0,9.761e-05,2]
[356349962,1742324805203,-150.0,9.763e-05,2]
[356349963,1742324805228,-150.0,9.766e-05,2]
[356349964,1742324805252,-150.0,9.77e-05,2]
[356349965,1742324805277,-150.0,9.771e-05,2]
[356349966,1742324805301,-150.0,9.773e-05,2]
[356349967,1742324805326,-150.0,9.773e-05,2]
[356349968,1742324805348,-150.0,9.773e-05,2]
[356349969,1742324805372,-150.0,9.778e-05,2]